[Event "MČR juniorů a juniorek v rapid šachu 2023"]
[Site "Czech Republic"]
[Date "2023.09.24"]
[Round "7.2"]
[White "Hurtik, Matej"]
[Black "Hlavina, Matous"]
[Result "1-0"]
[TimeControl "20 min + 5 sec per move"]
[WhiteFideId "397997"]
[BlackFideId "386650"]
[WhiteElo "1930"]
[BlackElo "2005"]

1. e4 {[%clk 00:19:52]} {[%emt 00:00:16]} Nf6 {[%clk 00:20:08]} {[%emt
00:00:03]} 2. e5 {[%clk 00:19:47]} {[%emt 00:00:10]} Nd5 {[%clk 00:20:11]}
{[%emt 00:00:02]} 3. c4 {[%clk 00:19:50]} {[%emt 00:00:02]} Nb6 {[%clk
00:20:14]} {[%emt 00:00:02]} 4. d4 {[%clk 00:19:53]} {[%emt 00:00:01]} d6
{[%clk 00:20:09]} {[%emt 00:00:11]} 5. exd6 {[%clk 00:19:57]} cxd6 {[%clk
00:20:12]} {[%emt 00:00:02]} 6. Nc3 {[%clk 00:19:32]} {[%emt 00:00:29]} g6
{[%clk 00:20:07]} {[%emt 00:00:11]} 7. Be3 {[%clk 00:19:24]} {[%emt 00:00:12]}
Bg7 {[%clk 00:20:09]} {[%emt 00:00:03]} 8. Rc1 {[%clk 00:19:26]} {[%emt
00:00:03]} Nc6 {[%clk 00:19:57]} {[%emt 00:00:18]} 9. h3 {[%clk 00:17:48]}
{[%emt 00:01:43]} O-O {[%clk 00:19:36]} {[%emt 00:00:26]} 10. Nf3 {[%clk
00:17:36]} {[%emt 00:00:17]} Bf5 {[%clk 00:18:50]} {[%emt 00:00:51]} 11. Be2
{[%clk 00:17:17]} {[%emt 00:00:22]} Re8 {[%clk 00:16:13]} {[%emt 00:02:44]} 12.
O-O {[%clk 00:17:08]} {[%emt 00:00:13]} Rb8 {[%clk 00:15:57]} {[%emt 00:00:22]}
13. b3 {[%clk 00:16:22]} {[%emt 00:00:50]} d5 {[%clk 00:15:39]} {[%emt
00:00:23]} 14. c5 {[%clk 00:12:28]} {[%emt 00:04:00]} Nc8 {[%clk 00:15:33]}
{[%emt 00:00:11]} 15. Bf4 {[%clk 00:12:16]} {[%emt 00:00:17]} Ra8 {[%clk
00:14:54]} {[%emt 00:00:44]} 16. Nb5 {[%clk 00:09:49]} {[%emt 00:02:31]} f6
{[%clk 00:10:20]} {[%emt 00:04:39]} 17. Nc7 {[%clk 00:09:15]} {[%emt 00:00:40]}
e5 {[%clk 00:09:59]} {[%emt 00:00:26]} 18. Nxe8 {[%clk 00:09:17]} {[%emt
00:00:03]} Qxe8 {[%clk 00:09:35]} {[%emt 00:00:29]} 19. dxe5 {[%clk 00:08:00]}
{[%emt 00:01:22]} fxe5 {[%clk 00:09:38]} {[%emt 00:00:02]} 20. Bg3 {[%clk
00:06:54]} {[%emt 00:01:10]} N8e7 {[%clk 00:09:35]} {[%emt 00:00:08]} 21. Re1
{[%clk 00:06:24]} {[%emt 00:00:36]} a6 {[%clk 00:09:11]} {[%emt 00:00:29]} 22.
Bh4 {[%clk 00:04:00]} {[%emt 00:02:28]} Rd8 {[%clk 00:09:00]} {[%emt 00:00:16]}
23. a3 {[%clk 00:02:28]} {[%emt 00:01:37]} e4 {[%clk 00:08:14]} {[%emt
00:00:52]} 24. Nd2 {[%clk 00:02:30]} {[%emt 00:00:03]} Bb2 {[%clk 00:06:12]}
{[%emt 00:02:07]} 25. Ra1 {[%clk 00:02:33]} {[%emt 00:00:01]} a5 {[%clk
00:05:15]} {[%emt 00:01:03]} 26. Bb5 {[%clk 00:02:16]} {[%emt 00:00:21]} Qf7
{[%clk 00:04:48]} {[%emt 00:00:33]} 27. Ra2 {[%clk 00:02:20]} Bd4 {[%clk
00:04:39]} {[%emt 00:00:13]} 28. b4 {[%clk 00:01:44]} {[%emt 00:00:41]} axb4
{[%clk 00:04:22]} {[%emt 00:00:23]} 29. axb4 {[%clk 00:01:48]} Nxb4 {[%clk
00:02:34]} {[%emt 00:01:53]} 30. Ra4 {[%clk 00:01:52]} Bxc5 {[%clk 00:02:22]}
{[%emt 00:00:17]} 31. Nxe4 {[%clk 00:01:30]} {[%emt 00:00:26]} Bxe4 {[%clk
00:01:52]} {[%emt 00:00:35]} 32. Rxe4 {[%clk 00:01:34]} dxe4 {[%clk 00:01:07]}
{[%emt 00:00:50]} 33. Qxd8+ {[%clk 00:01:37]} {[%emt 00:00:02]} Kg7 {[%clk
00:01:12]} 34. Rxb4 {[%clk 00:01:36]} {[%emt 00:00:07]} Nf5 {[%clk 00:00:46]}
{[%emt 00:00:31]} 35. Bc4 {[%clk 00:01:08]} {[%emt 00:00:32]} Qf8 {[%clk
00:00:22]} {[%emt 00:00:30]} 36. Rxb7+ {[%clk 00:01:10]} {[%emt 00:00:02]} 1-0

[Event "MČR juniorů a juniorek v rapid šachu 2023"]
[Site "Czech Republic"]
[Date "2023.09.24"]
[Round "7.3"]
[White "Dolensky, Filip"]
[Black "Pressler, Tobias"]
[Result "1/2-1/2"]
[TimeControl "20 min + 5 sec per move"]
[WhiteFideId "399000"]
[BlackFideId "23715359"]
[WhiteElo "1942"]
[BlackElo "1859"]

1. Nf3 {[%clk 00:20:08]} {[%emt 00:00:01]} d5 {[%clk 00:19:58]} {[%emt
00:00:13]} 2. c4 {[%clk 00:20:12]} {[%emt 00:00:01]} e6 {[%clk 00:19:53]}
{[%emt 00:00:10]} 3. d4 {[%clk 00:20:14]} {[%emt 00:00:02]} Nf6 {[%clk
00:19:53]} {[%emt 00:00:05]} 4. Nc3 {[%clk 00:20:11]} {[%emt 00:00:07]} Be7
{[%clk 00:19:53]} {[%emt 00:00:06]} 5. e3 {[%clk 00:20:10]} {[%emt 00:00:06]}
O-O {[%clk 00:19:53]} {[%emt 00:00:05]} 6. Qc2 {[%clk 00:20:04]} {[%emt
00:00:11]} c6 {[%clk 00:19:54]} {[%emt 00:00:04]} 7. Bd2 {[%clk 00:19:57]}
{[%emt 00:00:11]} Nbd7 {[%clk 00:19:55]} {[%emt 00:00:05]} 8. Bd3 {[%clk
00:19:48]} {[%emt 00:00:13]} Re8 {[%clk 00:19:17]} {[%emt 00:00:44]} 9. O-O
{[%clk 00:19:21]} {[%emt 00:00:31]} dxc4 {[%clk 00:18:05]} {[%emt 00:01:17]} 10.
Bxc4 {[%clk 00:19:24]} {[%emt 00:00:02]} Bd6 {[%clk 00:18:10]} 11. Rad1 {[%clk
00:18:08]} {[%emt 00:01:21]} e5 {[%clk 00:17:21]} {[%emt 00:00:54]} 12. h3
{[%clk 00:15:13]} {[%emt 00:02:59]} h6 {[%clk 00:16:56]} {[%emt 00:00:30]} 13.
Bc1 {[%clk 00:09:44]} {[%emt 00:05:34]} Qe7 {[%clk 00:15:43]} {[%emt 00:01:18]}
14. a4 {[%clk 00:07:50]} {[%emt 00:02:00]} e4 {[%clk 00:14:05]} {[%emt
00:01:43]} 15. Nd2 {[%clk 00:07:53]} {[%emt 00:00:02]} Nb6 {[%clk 00:13:42]}
{[%emt 00:00:27]} 16. b3 {[%clk 00:06:31]} {[%emt 00:01:27]} Bc7 {[%clk
00:11:01]} {[%emt 00:02:46]} 17. f4 {[%clk 00:03:41]} {[%emt 00:02:55]} h5
{[%clk 00:08:22]} {[%emt 00:02:44]} 18. Be2 {[%clk 00:03:31]} {[%emt 00:00:15]}
Bf5 {[%clk 00:08:00]} {[%emt 00:00:28]} 19. a5 {[%clk 00:03:00]} {[%emt
00:00:36]} Nbd5 {[%clk 00:07:58]} {[%emt 00:00:07]} 20. Nc4 {[%clk 00:03:04]}
{[%emt 00:00:01]} Nxc3 {[%clk 00:06:57]} {[%emt 00:01:06]} 21. Qxc3 {[%clk
00:03:03]} {[%emt 00:00:06]} Nd5 {[%clk 00:06:57]} {[%emt 00:00:04]} 22. Qd2
{[%clk 00:02:50]} {[%emt 00:00:17]} Qh4 {[%clk 00:06:54]} {[%emt 00:00:09]} 23.
Qe1 {[%clk 00:02:26]} {[%emt 00:00:29]} Qxe1 {[%clk 00:06:02]} {[%emt
00:00:58]} 24. Rdxe1 {[%clk 00:02:29]} {[%emt 00:00:01]} h4 {[%clk 00:05:50]}
{[%emt 00:00:17]} 25. Bd2 {[%clk 00:02:32]} {[%emt 00:00:03]} b5 {[%clk
00:04:16]} {[%emt 00:01:39]} 26. axb6 {[%clk 00:02:27]} {[%emt 00:00:10]} axb6
{[%clk 00:04:20]} {[%emt 00:00:01]} 27. Ra1 {[%clk 00:02:30]} {[%emt 00:00:01]}
c5 {[%clk 00:04:08]} {[%emt 00:00:18]} 28. dxc5 {[%clk 00:01:55]} {[%emt
00:00:40]} bxc5 {[%clk 00:04:12]} {[%emt 00:00:01]} 29. Nb2 {[%clk 00:01:08]}
{[%emt 00:00:51]} Nb4 {[%clk 00:03:05]} {[%emt 00:01:12]} 30. Rxa8 {[%clk
00:00:52]} {[%emt 00:00:21]} Rxa8 {[%clk 00:03:08]} {[%emt 00:00:02]} 31. Na4
{[%clk 00:00:53]} {[%emt 00:00:04]} Bd6 {[%clk 00:02:53]} {[%emt 00:00:21]} 32.
Rc1 {[%clk 00:00:55]} {[%emt 00:00:03]} Nd3 {[%clk 00:01:15]} {[%emt 00:01:44]}
33. Rc2 {[%clk 00:00:19]} {[%emt 00:00:40]} Bd7 {[%clk 00:01:09]} {[%emt
00:00:10]} 34. Bxd3 {[%clk 00:00:16]} {[%emt 00:00:08]} exd3 {[%clk 00:01:13]}
{[%emt 00:00:01]} 35. Rc3 {[%clk 00:00:19]} {[%emt 00:00:02]} Bb5 {[%clk
00:00:50]} {[%emt 00:00:28]} 36. Kf2 {[%clk 00:00:20]} {[%emt 00:00:04]} Bxa4
{[%clk 00:00:37]} {[%emt 00:00:19]} 37. bxa4 {[%clk 00:00:23]} {[%emt
00:00:01]} Rxa4 {[%clk 00:00:35]} {[%emt 00:00:07]} 38. Rxd3 {[%clk 00:00:27]}
{[%emt 00:00:01]} Be7 {[%clk 00:00:24]} {[%emt 00:00:17]} 39. Rc3 {[%clk
00:00:17]} {[%emt 00:00:15]} Ra2 {[%clk 00:00:24]} {[%emt 00:00:04]} 40. Ke2
{[%clk 00:00:18]} {[%emt 00:00:05]} Kf8 {[%clk 00:00:25]} {[%emt 00:00:04]} 41.
Rc4 {[%clk 00:00:18]} {[%emt 00:00:04]} Ke8 {[%clk 00:00:23]} {[%emt 00:00:08]}
42. e4 {[%clk 00:00:22]} {[%emt 00:00:01]} Kd7 {[%clk 00:00:26]} {[%emt
00:00:02]} 43. Kd3 {[%clk 00:00:14]} {[%emt 00:00:12]} Kc6 {[%clk 00:00:30]} 44.
Rc2 {[%clk 00:00:15]} {[%emt 00:00:04]} Ra3+ {[%clk 00:00:30]} {[%emt
00:00:05]} 45. Rc3 {[%clk 00:00:16]} {[%emt 00:00:04]} Ra2 {[%clk 00:00:34]} 46.
Rc2 {[%clk 00:00:17]} {[%emt 00:00:04]} Ra3+ {[%clk 00:00:38]} 47. Rc3 {[%clk
00:00:11]} {[%emt 00:00:11]} Ra8 {[%clk 00:00:38]} {[%emt 00:00:05]} 48. Be3
{[%clk 00:00:15]} {[%emt 00:00:02]} Rd8+ {[%clk 00:00:41]} {[%emt 00:00:02]} 49.
Ke2 {[%clk 00:00:12]} {[%emt 00:00:07]} Rb8 {[%clk 00:00:42]} {[%emt 00:00:03]}
50. Kd3 {[%clk 00:00:16]} {[%emt 00:00:02]} 1/2-1/2

[Event "MČR juniorů a juniorek v rapid šachu 2023"]
[Site "Czech Republic"]
[Date "2023.09.24"]
[Round "7.4"]
[White "Stejskal, Michal"]
[Black "Prazak, Daniel"]
[Result "0-1"]
[TimeControl "20 min + 5 sec per move"]
[WhiteFideId "398195"]
[BlackFideId "23709456"]
[WhiteElo "1959"]
[BlackElo "2029"]

1. e4 {[%clk 00:20:08]} {[%emt 00:00:01]} e5 {[%clk 00:20:03]} {[%emt
00:00:08]} 2. Nf3 {[%clk 00:20:10]} {[%emt 00:00:02]} Nc6 {[%clk 00:20:07]}
{[%emt 00:00:02]} 3. Bc4 {[%clk 00:20:12]} {[%emt 00:00:03]} Bc5 {[%clk
00:20:11]} {[%emt 00:00:01]} 4. d4 {[%clk 00:20:15]} {[%emt 00:00:02]} exd4
{[%clk 00:19:52]} {[%emt 00:00:24]} 5. O-O {[%clk 00:20:18]} {[%emt 00:00:02]}
d6 {[%clk 00:19:03]} {[%emt 00:00:54]} 6. Bf4 {[%clk 00:19:28]} {[%emt
00:00:55]} Nf6 {[%clk 00:18:13]} {[%emt 00:00:55]} 7. Nbd2 {[%clk 00:17:39]}
{[%emt 00:01:54]} O-O {[%clk 00:17:31]} {[%emt 00:00:48]} 8. Re1 {[%clk
00:17:38]} {[%emt 00:00:06]} Bb6 {[%clk 00:15:10]} {[%emt 00:02:25]} 9. Nb3
{[%clk 00:16:54]} {[%emt 00:00:49]} Bg4 {[%clk 00:14:25]} {[%emt 00:00:50]} 10.
a4 {[%clk 00:15:59]} {[%emt 00:01:01]} a6 {[%clk 00:14:02]} {[%emt 00:00:28]}
11. a5 {[%clk 00:14:52]} {[%emt 00:01:11]} Ba7 {[%clk 00:14:06]} {[%emt
00:00:02]} 12. Bd5 {[%clk 00:14:56]} {[%emt 00:00:01]} Nxd5 {[%clk 00:13:08]}
{[%emt 00:01:02]} 13. exd5 {[%clk 00:15:00]} Ne7 {[%clk 00:09:55]} {[%emt
00:03:18]} 14. c4 {[%clk 00:14:09]} {[%emt 00:00:56]} dxc3 {[%clk 00:09:44]}
{[%emt 00:00:17]} 15. bxc3 {[%clk 00:14:13]} {[%emt 00:00:01]} Ng6 {[%clk
00:08:51]} {[%emt 00:00:57]} 16. Bg3 {[%clk 00:14:15]} {[%emt 00:00:03]} Qf6
{[%clk 00:07:43]} {[%emt 00:01:13]} 17. Qd3 {[%clk 00:13:36]} {[%emt 00:00:43]}
Bxf3 {[%clk 00:07:16]} {[%emt 00:00:33]} 18. gxf3 {[%clk 00:13:39]} {[%emt
00:00:02]} h5 {[%clk 00:06:31]} {[%emt 00:00:50]} 19. h3 {[%clk 00:13:02]}
{[%emt 00:00:42]} Nf4 {[%clk 00:05:56]} {[%emt 00:00:41]} 20. Bxf4 {[%clk
00:13:03]} {[%emt 00:00:05]} Qxf4 {[%clk 00:05:59]} {[%emt 00:00:02]} 21. Kg2
{[%clk 00:12:20]} {[%emt 00:00:47]} Qg5+ {[%clk 00:06:02]} {[%emt 00:00:03]} 22.
Kf1 {[%clk 00:12:24]} {[%emt 00:00:02]} Qh4 {[%clk 00:06:03]} {[%emt 00:00:04]}
23. Nd4 {[%clk 00:11:47]} {[%emt 00:00:42]} Bxd4 {[%clk 00:05:17]} {[%emt
00:00:52]} 24. cxd4 {[%clk 00:11:50]} {[%emt 00:00:02]} Qxh3+ {[%clk 00:05:05]}
{[%emt 00:00:16]} 25. Ke2 {[%clk 00:11:54]} Rfe8+ {[%clk 00:05:08]} {[%emt
00:00:02]} 26. Kd2 {[%clk 00:11:58]} {[%emt 00:00:01]} Qg2 {[%clk 00:04:58]}
{[%emt 00:00:15]} 27. Rf1 {[%clk 00:11:22]} {[%emt 00:00:41]} Qg5+ {[%clk
00:05:01]} {[%emt 00:00:02]} 28. Kc3 {[%clk 00:11:22]} {[%emt 00:00:06]} Qxd5
{[%clk 00:05:03]} {[%emt 00:00:03]} 29. Rh1 {[%clk 00:11:26]} c5 {[%clk
00:04:13]} {[%emt 00:00:55]} 30. dxc5 {[%clk 00:11:26]} {[%emt 00:00:05]} Qxc5+
{[%clk 00:04:15]} {[%emt 00:00:03]} 31. Qc4 {[%clk 00:10:39]} {[%emt 00:00:52]}
Qxf2 {[%clk 00:03:57]} {[%emt 00:00:22]} 32. Kb4 {[%clk 00:10:07]} {[%emt
00:00:37]} Rac8 {[%clk 00:03:53]} {[%emt 00:00:09]} 33. Qd5 {[%clk 00:09:34]}
{[%emt 00:00:39]} Qb2+ {[%clk 00:03:38]} {[%emt 00:00:19]} 34. Ka4 {[%clk
00:09:38]} {[%emt 00:00:02]} Qc2+ {[%clk 00:03:41]} {[%emt 00:00:01]} 35. Kb4
{[%clk 00:09:21]} {[%emt 00:00:22]} Qc3+ {[%clk 00:03:43]} {[%emt 00:00:03]} 36.
Ka4 {[%clk 00:09:24]} {[%emt 00:00:02]} Rc4+ {[%clk 00:03:47]} {[%emt
00:00:01]} 0-1

[Event "MČR juniorů a juniorek v rapid šachu 2023"]
[Site "Czech Republic"]
[Date "2023.09.24"]
[Round "7.5"]
[White "Cibulka, Josef"]
[Black "Steinbauer, Sebastian"]
[Result "1-0"]
[TimeControl "20 min + 5 sec per move"]
[WhiteFideId "23708042"]
[BlackFideId "399272"]
[WhiteElo "1922"]
[BlackElo "1880"]

1. e4 {[%clk 00:20:07]} {[%emt 00:00:02]} e5 {[%clk 00:20:09]} {[%emt
00:00:02]} 2. Nf3 {[%clk 00:20:10]} {[%emt 00:00:02]} Nf6 {[%clk 00:20:13]} 3.
d3 {[%clk 00:20:04]} {[%emt 00:00:10]} Nc6 {[%clk 00:19:52]} {[%emt 00:00:27]}
4. g3 {[%clk 00:20:05]} {[%emt 00:00:04]} Bc5 {[%clk 00:19:28]} {[%emt
00:00:29]} 5. Bg2 {[%clk 00:20:07]} {[%emt 00:00:03]} d6 {[%clk 00:19:03]}
{[%emt 00:00:30]} 6. O-O {[%clk 00:20:08]} {[%emt 00:00:04]} Bg4 {[%clk
00:19:06]} {[%emt 00:00:02]} 7. Nbd2 {[%clk 00:19:55]} {[%emt 00:00:17]} Qd7
{[%clk 00:19:04]} {[%emt 00:00:08]} 8. c3 {[%clk 00:19:52]} {[%emt 00:00:07]}
a6 {[%clk 00:18:19]} {[%emt 00:00:51]} 9. b4 {[%clk 00:19:30]} {[%emt
00:00:27]} Bb6 {[%clk 00:17:46]} {[%emt 00:00:39]} 10. Nc4 {[%clk 00:19:16]}
{[%emt 00:00:18]} Ba7 {[%clk 00:17:12]} {[%emt 00:00:40]} 11. Be3 {[%clk
00:19:07]} {[%emt 00:00:13]} Bxe3 {[%clk 00:17:14]} {[%emt 00:00:02]} 12. Nxe3
{[%clk 00:19:07]} {[%emt 00:00:05]} Bh3 {[%clk 00:15:31]} {[%emt 00:01:48]} 13.
Re1 {[%clk 00:18:43]} {[%emt 00:00:30]} Bxg2 {[%clk 00:15:17]} {[%emt
00:00:19]} 14. Kxg2 {[%clk 00:18:45]} {[%emt 00:00:02]} Ne7 {[%clk 00:15:12]}
{[%emt 00:00:11]} 15. Qc2 {[%clk 00:18:02]} {[%emt 00:00:48]} O-O {[%clk
00:15:05]} {[%emt 00:00:12]} 16. a4 {[%clk 00:17:19]} {[%emt 00:00:48]} b5
{[%clk 00:14:32]} {[%emt 00:00:38]} 17. axb5 {[%clk 00:16:52]} {[%emt
00:00:32]} axb5 {[%clk 00:14:35]} {[%emt 00:00:02]} 18. Ra2 {[%clk 00:16:53]}
{[%emt 00:00:04]} Rxa2 {[%clk 00:14:26]} {[%emt 00:00:15]} 19. Qxa2 {[%clk
00:16:56]} {[%emt 00:00:02]} Qc6 {[%clk 00:14:29]} {[%emt 00:00:01]} 20. Qb3
{[%clk 00:16:04]} {[%emt 00:00:57]} h6 {[%clk 00:14:10]} {[%emt 00:00:24]} 21.
Ra1 {[%clk 00:16:02]} {[%emt 00:00:07]} Ra8 {[%clk 00:14:07]} {[%emt 00:00:08]}
22. Rxa8+ {[%clk 00:15:08]} {[%emt 00:00:58]} Qxa8 {[%clk 00:14:11]} {[%emt
00:00:02]} 23. c4 {[%clk 00:15:06]} {[%emt 00:00:07]} bxc4 {[%clk 00:13:22]}
{[%emt 00:00:54]} 24. Qxc4 {[%clk 00:15:04]} {[%emt 00:00:07]} Qb7 {[%clk
00:13:04]} {[%emt 00:00:23]} 25. b5 {[%clk 00:13:43]} {[%emt 00:01:25]} Nd7
{[%clk 00:12:59]} {[%emt 00:00:10]} 26. Nd5 {[%clk 00:13:20]} {[%emt 00:00:28]}
Nxd5 {[%clk 00:12:57]} {[%emt 00:00:08]} 27. exd5 {[%clk 00:13:21]} {[%emt
00:00:04]} Nb6 {[%clk 00:12:53]} {[%emt 00:00:09]} 28. Qc6 {[%clk 00:13:24]}
{[%emt 00:00:02]} Qxc6 {[%clk 00:11:20]} {[%emt 00:01:39]} 29. dxc6 {[%clk
00:13:27]} {[%emt 00:00:01]} Kf8 {[%clk 00:11:17]} {[%emt 00:00:09]} 30. Nd2
{[%clk 00:13:15]} {[%emt 00:00:16]} d5 {[%clk 00:11:15]} {[%emt 00:00:07]} 31.
Kf3 {[%clk 00:12:29]} {[%emt 00:00:51]} Ke7 {[%clk 00:11:18]} 32. Ke3 {[%clk
00:12:30]} {[%emt 00:00:04]} Kd6 {[%clk 00:10:38]} {[%emt 00:00:46]} 33. d4
{[%clk 00:11:36]} {[%emt 00:00:58]} f6 {[%clk 00:09:50]} {[%emt 00:00:53]} 34.
f3 {[%clk 00:11:27]} {[%emt 00:00:14]} g6 {[%clk 00:08:37]} {[%emt 00:01:19]}
35. Kd3 {[%clk 00:11:14]} {[%emt 00:00:17]} Nc8 {[%emt 00:01:40]} 36. Nb1
{[%clk 00:10:11]} {[%emt 00:00:37]} Ne7 {[%clk 00:07:38]} 37. g4 {[%clk
00:09:58]} {[%emt 00:00:18]} g5 {[%clk 00:07:42]} 38. Nc3 {[%clk 00:09:52]}
{[%emt 00:00:12]} Ng6 {[%emt 00:01:41]} 39. Ne2 {[%clk 00:08:13]} {[%emt
00:00:10]} Nh4 {[%emt 00:00:28]} 40. Ke3 {[%emt 00:02:12]} Ng6 {[%clk
00:05:33]} {[%emt 00:01:15]} 41. Ng3 {[%clk 00:06:19]} {[%emt 00:00:25]} Nh4
{[%emt 00:03:34]} 42. Nh5 {[%clk 00:03:26]} {[%emt 00:00:07]} exd4+ {[%clk
00:04:12]} {[%emt 00:00:48]} 43. Kxd4 {[%clk 00:03:30]} {[%emt 00:00:02]} Nxf3+
{[%clk 00:04:15]} {[%emt 00:00:01]} 44. Ke3 {[%clk 00:03:32]} {[%emt 00:00:02]}
Ne5 {[%clk 00:03:34]} {[%emt 00:00:47]} 45. Nxf6 {[%clk 00:03:32]} {[%emt
00:00:06]} Kc5 {[%clk 00:03:36]} {[%emt 00:00:03]} 46. Nd7+ {[%clk 00:03:33]}
{[%emt 00:00:05]} Kd6 {[%clk 00:03:32]} {[%emt 00:00:08]} 47. Nxe5 {[%clk
00:03:34]} {[%emt 00:00:04]} Kxe5 {[%clk 00:03:36]} 48. b6 {[%clk 00:03:33]}
{[%emt 00:00:06]} 1-0

[Event "MČR juniorů a juniorek v rapid šachu 2023"]
[Site "Czech Republic"]
[Date "2023.09.24"]
[Round "7.6"]
[White "Rybackova, Lucie"]
[Black "Jun, Rudolf"]
[Result "0-1"]
[TimeControl "20 min + 5 sec per move"]
[WhiteFideId "23739207"]
[BlackFideId "376612"]
[WhiteElo "1768"]
[BlackElo "2151"]

1. Nf3 {[%clk 00:20:07]} {[%emt 00:00:02]} Nf6 {[%clk 00:20:07]} {[%emt
00:00:03]} 2. g3 {[%clk 00:20:08]} {[%emt 00:00:05]} b6 {[%clk 00:20:08]}
{[%emt 00:00:04]} 3. Bg2 {[%clk 00:20:02]} {[%emt 00:00:10]} Bb7 {[%clk
00:20:11]} {[%emt 00:00:03]} 4. O-O {[%clk 00:19:57]} {[%emt 00:00:10]} g6
{[%clk 00:20:13]} {[%emt 00:00:03]} 5. c4 {[%clk 00:19:47]} {[%emt 00:00:14]}
c5 {[%clk 00:20:06]} {[%emt 00:00:13]} 6. Nc3 {[%clk 00:19:33]} {[%emt
00:00:19]} Bg7 {[%clk 00:20:06]} {[%emt 00:00:05]} 7. d4 {[%clk 00:19:03]}
{[%emt 00:00:35]} cxd4 {[%clk 00:20:07]} {[%emt 00:00:04]} 8. Nxd4 {[%clk
00:19:06]} {[%emt 00:00:01]} Bxg2 {[%clk 00:19:59]} {[%emt 00:00:14]} 9. Kxg2
{[%clk 00:19:07]} {[%emt 00:00:03]} Qc7 {[%clk 00:19:11]} {[%emt 00:00:53]} 10.
b3 {[%clk 00:17:49]} {[%emt 00:01:24]} O-O {[%clk 00:18:54]} {[%emt 00:00:22]}
11. Qd3 {[%clk 00:16:22]} {[%emt 00:01:32]} a6 {[%clk 00:18:10]} {[%emt
00:00:49]} 12. e4 {[%clk 00:14:54]} {[%emt 00:01:32]} Nc6 {[%clk 00:16:29]}
{[%emt 00:01:46]} 13. f3 {[%clk 00:12:37]} {[%emt 00:02:23]} Nxd4 {[%clk
00:16:16]} {[%emt 00:00:17]} 14. Qxd4 {[%clk 00:12:36]} {[%emt 00:00:06]} Nxe4
{[%clk 00:16:17]} {[%emt 00:00:05]} 15. Qxe4 {[%clk 00:12:28]} {[%emt
00:00:12]} Bxc3 {[%clk 00:16:19]} {[%emt 00:00:04]} 16. Bh6 {[%clk 00:11:30]}
{[%emt 00:01:03]} Bxa1 {[%clk 00:13:21]} {[%emt 00:03:03]} 17. Bxf8 {[%clk
00:11:29]} {[%emt 00:00:05]} Rxf8 {[%clk 00:13:15]} {[%emt 00:00:11]} 18. Rxa1
{[%clk 00:11:33]} {[%emt 00:00:02]} e6 {[%clk 00:13:18]} {[%emt 00:00:02]} 19.
Rd1 {[%clk 00:11:19]} {[%emt 00:00:18]} d6 {[%clk 00:11:51]} {[%emt 00:01:33]}
20. Qf4 {[%clk 00:10:13]} {[%emt 00:01:11]} Rd8 {[%clk 00:11:48]} {[%emt
00:00:08]} 21. h4 {[%clk 00:10:06]} {[%emt 00:00:11]} Qe7 {[%clk 00:08:12]}
{[%emt 00:03:41]} 22. h5 {[%clk 00:09:43]} {[%emt 00:00:28]} b5 {[%clk
00:05:34]} {[%emt 00:02:43]} 23. cxb5 {[%clk 00:09:16]} {[%emt 00:00:33]} axb5
{[%clk 00:05:32]} {[%emt 00:00:06]} 24. Qb4 {[%clk 00:08:49]} {[%emt 00:00:32]}
e5 {[%clk 00:02:30]} {[%emt 00:03:08]} 25. Qxb5 {[%clk 00:06:51]} {[%emt
00:02:04]} e4 {[%clk 00:02:32]} {[%emt 00:00:03]} 26. Qe2 {[%clk 00:06:03]}
{[%emt 00:00:52]} e3 {[%clk 00:02:35]} {[%emt 00:00:02]} 27. Rd3 {[%clk
00:05:51]} {[%emt 00:00:17]} Re8 {[%clk 00:02:40]} 28. hxg6 {[%clk 00:05:43]}
{[%emt 00:00:13]} hxg6 {[%clk 00:02:39]} {[%emt 00:00:06]} 29. a4 {[%clk
00:05:22]} {[%emt 00:00:26]} Qe5 {[%clk 00:02:43]} 30. Rd1 {[%clk 00:04:05]}
{[%emt 00:01:22]} d5 {[%clk 00:02:30]} {[%emt 00:00:18]} 31. Qd3 {[%clk
00:03:32]} {[%emt 00:00:37]} Qb2+ {[%clk 00:01:43]} {[%emt 00:00:52]} 32. Kh3
{[%clk 00:02:00]} {[%emt 00:01:37]} d4 {[%clk 00:00:31]} {[%emt 00:01:18]} 33.
a5 {[%clk 00:01:04]} {[%emt 00:01:02]} e2 {[%clk 00:00:27]} {[%emt 00:00:08]}
34. Re1 {[%clk 00:00:59]} {[%emt 00:00:08]} Re3 {[%clk 00:00:20]} {[%emt
00:00:13]} 35. Qb5 {[%clk 00:00:42]} {[%emt 00:00:23]} Qd2 {[%clk 00:00:07]}
{[%emt 00:00:17]} 36. Qb8+ {[%clk 00:00:27]} {[%emt 00:00:19]} Kg7 {[%clk
00:00:11]} {[%emt 00:00:01]} 37. Qd6 {[%clk 00:00:20]} {[%emt 00:00:12]} Re6
{[%clk 00:00:15]} {[%emt 00:00:02]} 38. Qf4 {[%clk 00:00:15]} {[%emt 00:00:10]}
Qxe1 {[%clk 00:00:17]} {[%emt 00:00:03]} 39. Qxd4+ {[%clk 00:00:19]} {[%emt
00:00:01]} Kf8 {[%clk 00:00:08]} {[%emt 00:00:14]} 40. Qd8+ {[%clk 00:00:22]}
{[%emt 00:00:02]} Re8 {[%clk 00:00:11]} {[%emt 00:00:02]} 41. Qd6+ {[%clk
00:00:26]} Kg8 {[%clk 00:00:15]} 42. a6 {[%clk 00:00:26]} {[%emt 00:00:06]}
Qh1+ {[%clk 00:00:18]} {[%emt 00:00:02]} 43. Kg4 {[%clk 00:00:30]} Qh5+ {[%clk
00:00:22]} 0-1